[Event "*** Titled Tuesday Blitz"]
[Site "Chess.com"]
[Date "2021.02.09"]
[Round "9"]
[White "rachidhuilda"]
[Black "zim0ne"]
[Result "1/2-1/2"]
[WhiteElo "2323"]
[BlackElo "2528"]
[TimeControl "180+1"]
[EndTime "11:44:33 PST"]
[Termination "Game drawn by repetition"]

1. d4 {[%clk 0:02:16.1]} 1... d5 {[%clk 0:02:58.2]} 2. c4 {[%clk 0:02:15.9]}
2... c6 {[%clk 0:02:58.2]} 3. Nf3 {[%clk 0:02:15.9]} 3... Nf6 {[%clk 0:02:58]}
4. Nc3 {[%clk 0:02:15.6]} 4... g6 {[%clk 0:02:57.9]} 5. c5 {[%clk 0:02:14.9]}
5... Bg7 {[%clk 0:02:57.6]} 6. h3 {[%clk 0:02:15.5]} 6... O-O {[%clk 0:02:57.4]}
7. Bf4 {[%clk 0:02:15.4]} 7... b6 {[%clk 0:02:54.6]} 8. cxb6 {[%clk 0:02:13.2]}
8... Qxb6 {[%clk 0:02:52.9]} 9. Na4 {[%clk 0:02:06.2]} 9... Qb7 {[%clk
0:02:49.8]} 10. b3 {[%clk 0:01:52.9]} 10... Nbd7 {[%clk 0:02:48.8]} 11. e3
{[%clk 0:01:43.3]} 11... Ne4 {[%clk 0:02:46.4]} 12. Bd3 {[%clk 0:01:40.3]} 12...
c5 {[%clk 0:02:46.4]} 13. O-O {[%clk 0:01:33.3]} 13... cxd4 {[%clk 0:02:46.1]}
14. exd4 {[%clk 0:01:33.3]} 14... Nb6 {[%clk 0:02:46.4]} 15. Nc5 {[%clk
0:01:23.2]} 15... Nxc5 {[%clk 0:02:43.9]} 16. dxc5 {[%clk 0:01:23.4]} 16... Bxa1
{[%clk 0:02:43.8]} 17. Qxa1 {[%clk 0:01:20.3]} 17... Nd7 {[%clk 0:02:41.8]} 18.
Bh6 {[%clk 0:01:14.3]} 18... f6 {[%clk 0:02:42]} 19. Rc1 {[%clk 0:01:10.5]}
19... Qc7 {[%clk 0:02:36.7]} 20. c6 {[%clk 0:01:03.2]} 20... Nb6 {[%clk
0:02:32.7]} 21. Bxf8 {[%clk 0:01:03]} 21... Kxf8 {[%clk 0:02:32.9]} 22. Nd4
{[%clk 0:00:57.6]} 22... e5 {[%clk 0:02:28.9]} 23. Nb5 {[%clk 0:00:56.9]} 23...
Qe7 {[%clk 0:02:28.1]} 24. Qb1 {[%clk 0:00:44.2]} 24... a6 {[%clk 0:02:23.3]}
25. Nc3 {[%clk 0:00:44.3]} 25... Ra7 {[%clk 0:02:17.6]} 26. Na4 {[%clk
0:00:43.1]} 26... Nxa4 {[%clk 0:02:08.5]} 27. bxa4 {[%clk 0:00:44]} 27... Rc7
{[%clk 0:02:09]} 28. Qb6 {[%clk 0:00:42.3]} 28... e4 {[%clk 0:01:47.8]} 29. Bxa6
{[%clk 0:00:42.2]} 29... Bxa6 {[%clk 0:01:47.5]} 30. Qxa6 {[%clk 0:00:42.4]}
30... d4 {[%clk 0:01:46.1]} 31. Qc4 {[%clk 0:00:34]} 31... d3 {[%clk 0:01:43.2]}
32. a5 {[%clk 0:00:29.9]} 32... f5 {[%clk 0:01:38.1]} 33. a6 {[%clk 0:00:29.3]}
33... Qd6 {[%clk 0:01:34.7]} 34. a7 {[%clk 0:00:25.1]} 34... Rc8 {[%clk
0:01:30]} 35. c7 {[%clk 0:00:25.3]} 35... d2 {[%clk 0:01:30.2]} 36. Rd1 {[%clk
0:00:20.8]} 36... Ke7 {[%clk 0:01:23.9]} 37. Qc3 {[%clk 0:00:20.5]} 37... Qb6
{[%clk 0:01:12.5]} 38. Rxd2 {[%clk 0:00:16.7]} 38... Qxa7 {[%clk 0:01:12.6]} 39.
Qg7+ {[%clk 0:00:16.7]} 39... Ke6 {[%clk 0:01:12]} 40. Qxh7 {[%clk 0:00:14.9]}
40... Kf6 {[%clk 0:01:04.9]} 41. Qh4+ {[%clk 0:00:07.4]} 41... Ke6 {[%clk
0:01:02.8]} 42. Qh7 {[%clk 0:00:06.4]} 42... Qxc7 {[%clk 0:01:00.8]} 43. Qxg6+
{[%clk 0:00:06.3]} 43... Ke5 {[%clk 0:01:00.8]} 44. Qg3+ {[%clk 0:00:05.3]}
44... Ke6 {[%clk 0:01:01.2]} 45. Qg6+ {[%clk 0:00:05.5]} 45... Ke5 {[%clk
0:01:01.2]} 46. Qg3+ {[%clk 0:00:05.8]} 46... Ke6 {[%clk 0:01:01.6]} 47. Qg6+
{[%clk 0:00:06.3]} 1/2-1/2

[Event "*** Titled Tuesday Blitz"]
[Site "Chess.com"]
[Date "2021.02.09"]
[Round "9"]
[White "Rodalquilar"]
[Black "Arseniy_Nesterov"]
[Result "0-1"]
[WhiteElo "2689"]
[BlackElo "2816"]
[TimeControl "180+1"]
[EndTime "11:44:34 PST"]
[Termination "Arseniy_Nesterov won by checkmate"]

1. d4 {[%clk 0:03:00.9]} 1... d5 {[%clk 0:02:58.2]} 2. Bf4 {[%clk 0:03:00.5]}
2... c5 {[%clk 0:02:58]} 3. e3 {[%clk 0:03:00.7]} 3... cxd4 {[%clk 0:02:58.3]}
4. exd4 {[%clk 0:03:00.9]} 4... Nc6 {[%clk 0:02:59]} 5. Nf3 {[%clk 0:03:01]}
5... Bf5 {[%clk 0:02:56.6]} 6. Nbd2 {[%clk 0:03:01]} 6... e6 {[%clk 0:02:56.4]}
7. c3 {[%clk 0:02:57.1]} 7... Bd6 {[%clk 0:02:54.9]} 8. Bxd6 {[%clk 0:02:57.4]}
8... Qxd6 {[%clk 0:02:54.9]} 9. Be2 {[%clk 0:02:58.3]} 9... Nge7 {[%clk
0:02:53.4]} 10. O-O {[%clk 0:02:58.6]} 10... O-O {[%clk 0:02:51.5]} 11. Re1
{[%clk 0:02:57.6]} 11... h6 {[%clk 0:02:50]} 12. a4 {[%clk 0:02:54.8]} 12... b6
{[%clk 0:02:40]} 13. Ba6 {[%clk 0:02:46.3]} 13... f6 {[%clk 0:02:26.6]} 14. Qe2
{[%clk 0:02:42]} 14... Rae8 {[%clk 0:02:17.5]} 15. Bb5 {[%clk 0:02:36.6]} 15...
Rd8 {[%clk 0:02:04.8]} 16. Nh4 {[%clk 0:02:23.2]} 16... Kf7 {[%clk 0:01:15.5]}
17. Qh5+ {[%clk 0:01:52.4]} 17... Kg8 {[%clk 0:01:15.5]} 18. Nxf5 {[%clk
0:01:52.4]} 18... Nxf5 {[%clk 0:01:11.7]} 19. Bd3 {[%clk 0:01:52.5]} 19... Nfe7
{[%clk 0:00:59.1]} 20. Re3 {[%clk 0:01:51.7]} 20... e5 {[%clk 0:00:53.3]} 21.
Rg3 {[%clk 0:01:49.2]} 21... e4 {[%clk 0:00:51.6]} 22. Nxe4 {[%clk 0:01:21]}
22... dxe4 {[%clk 0:00:49.2]} 23. Qxh6 {[%clk 0:01:21.5]} 23... Qxg3 {[%clk
0:00:41.8]} 24. Bc4+ {[%clk 0:01:19.9]} 24... Nd5 {[%clk 0:00:38.5]} 25. Qh5
{[%clk 0:01:15]} 25... Qg5 {[%clk 0:00:37.9]} 26. Qe2 {[%clk 0:01:12]} 26...
Rfe8 {[%clk 0:00:31.5]} 27. g3 {[%clk 0:01:11.6]} 27... Kh7 {[%clk 0:00:28.4]}
28. h4 {[%clk 0:01:10.9]} 28... Qg6 {[%clk 0:00:24.2]} 29. Rf1 {[%clk
0:01:10.2]} 29... f5 {[%clk 0:00:20.5]} 30. Kh2 {[%clk 0:01:10.3]} 30... Nf6
{[%clk 0:00:20.4]} 31. f3 {[%clk 0:01:09.4]} 31... exf3 {[%clk 0:00:19.4]} 32.
Qxf3 {[%clk 0:01:10.3]} 32... Ng4+ {[%clk 0:00:19.5]} 33. Kh3 {[%clk 0:01:10.8]}
33... Ne3 {[%clk 0:00:18.8]} 34. Bd3 {[%clk 0:01:09.5]} 34... Kh8 {[%clk
0:00:10.6]} 35. Kh2 {[%clk 0:00:52.9]} 35... Nxf1+ {[%clk 0:00:09.7]} 36. Qxf1
{[%clk 0:00:53.8]} 36... Re3 {[%clk 0:00:07.7]} 37. Bxf5 {[%clk 0:00:52.9]}
37... Qxg3+ {[%clk 0:00:07.6]} 38. Kh1 {[%clk 0:00:52.9]} 38... Qxh4+ {[%clk
0:00:06.8]} 39. Kg2 {[%clk 0:00:53.1]} 39... Rg3+ {[%clk 0:00:06.6]} 40. Kf2
{[%clk 0:00:53.7]} 40... Qf4+ {[%clk 0:00:06.7]} 41. Ke2 {[%clk 0:00:54.3]}
41... Qxf1+ {[%clk 0:00:07.4]} 42. Kxf1 {[%clk 0:00:54.7]} 42... Rf3+ {[%clk
0:00:08.3]} 43. Ke2 {[%clk 0:00:55.6]} 43... Rxf5 {[%clk 0:00:09.1]} 44. Kd3
{[%clk 0:00:56.5]} 44... Ne5+ {[%clk 0:00:09]} 45. Kc2 {[%clk 0:00:56.5]} 45...
Rf2+ {[%clk 0:00:08.6]} 46. Kb3 {[%clk 0:00:57.4]} 46... g5 {[%clk 0:00:08.7]}
47. Kb4 {[%clk 0:00:58.3]} 47... g4 {[%clk 0:00:09.2]} 48. b3 {[%clk 0:00:59.2]}
48... g3 {[%clk 0:00:09.8]} 49. c4 {[%clk 0:01:00]} 49... g2 {[%clk 0:00:10.4]}
50. d5 {[%clk 0:01:00.9]} 50... g1=Q {[%clk 0:00:10.4]} 51. Kb5 {[%clk
0:01:01.8]} 51... Qg7 {[%clk 0:00:10.2]} 52. b4 {[%clk 0:01:02.7]} 52... Qd7+
{[%clk 0:00:09.7]} 53. Ka6 {[%clk 0:01:03.6]} 53... Qxa4+ {[%clk 0:00:09.7]} 54.
Kb7 {[%clk 0:01:03.8]} 54... Rf7# {[%clk 0:00:10.3]} 0-1

[Event "*** Titled Tuesday Blitz"]
[Site "Chess.com"]
[Date "2021.02.09"]
[Round "9"]
[White "serhanberat_ozdemir"]
[Black "mbojan"]
[Result "1-0"]
[WhiteElo "2501"]
[BlackElo "2609"]
[TimeControl "180+1"]
[EndTime "11:44:37 PST"]
[Termination "serhanberat_ozdemir won by checkmate"]

1. e4 {[%clk 0:03:00.9]} 1... g6 {[%clk 0:03:00.9]} 2. d4 {[%clk 0:03:00.2]}
2... Bg7 {[%clk 0:03:01.6]} 3. Nc3 {[%clk 0:03:00.6]} 3... d6 {[%clk 0:03:02.1]}
4. Nf3 {[%clk 0:03:00.2]} 4... a6 {[%clk 0:03:02.7]} 5. Be3 {[%clk 0:03:00]}
5... b5 {[%clk 0:03:02.9]} 6. Bd3 {[%clk 0:02:59.7]} 6... Bb7 {[%clk 0:03:03]}
7. a4 {[%clk 0:02:59.8]} 7... b4 {[%clk 0:03:02.9]} 8. Ne2 {[%clk 0:03:00.1]}
8... Nd7 {[%clk 0:03:00.9]} 9. Qd2 {[%clk 0:02:59.5]} 9... c5 {[%clk 0:03:00.6]}
10. c3 {[%clk 0:02:59.6]} 10... Ngf6 {[%clk 0:02:41.4]} 11. Ng3 {[%clk
0:02:59.1]} 11... Ng4 {[%clk 0:02:40]} 12. Bg5 {[%clk 0:02:58.4]} 12... h6
{[%clk 0:02:39.8]} 13. Bh4 {[%clk 0:02:58.7]} 13... g5 {[%clk 0:02:30.2]} 14.
Nf5 {[%clk 0:02:58.4]} 14... Bf8 {[%clk 0:02:16.3]} 15. Bg3 {[%clk 0:02:57.9]}
15... Ndf6 {[%clk 0:02:06]} 16. Qe2 {[%clk 0:02:29.3]} 16... e6 {[%clk
0:02:03.2]} 17. e5 {[%clk 0:02:04.2]} 17... dxe5 {[%clk 0:01:40.9]} 18. dxe5
{[%clk 0:02:02]} 18... Nd5 {[%clk 0:01:31.4]} 19. h3 {[%clk 0:01:13]} 19... exf5
{[%clk 0:01:15.3]} 20. Bxf5 {[%clk 0:01:13.9]} 20... Nge3 {[%clk 0:00:45.6]} 21.
fxe3 {[%clk 0:01:13.3]} 21... bxc3 {[%clk 0:00:46.1]} 22. e6 {[%clk 0:00:48.3]}
22... Bg7 {[%clk 0:00:28.7]} 23. Be5 {[%clk 0:00:39.9]} 23... fxe6 {[%clk
0:00:15]} 24. Bxg7 {[%clk 0:00:31.2]} 24... Rg8 {[%clk 0:00:14.9]} 25. Bg6+
{[%clk 0:00:27.8]} 25... Ke7 {[%clk 0:00:11.4]} 26. Bxh6 {[%clk 0:00:21.7]}
26... Rxg6 {[%clk 0:00:10.6]} 27. Bxg5+ {[%clk 0:00:22.4]} 27... Rxg5 {[%clk
0:00:11.1]} 28. Nxg5 {[%clk 0:00:22.8]} 28... Qh8 {[%clk 0:00:04.6]} 29. O-O
{[%clk 0:00:20.2]} 29... cxb2 {[%clk 0:00:03.6]} 30. Rad1 {[%clk 0:00:20.3]}
30... Rf8 {[%clk 0:00:02.7]} 31. e4 {[%clk 0:00:19.8]} 31... Rxf1+ {[%clk
0:00:01.7]} 32. Qxf1 {[%clk 0:00:17.2]} 32... Nc3 {[%clk 0:00:01.3]} 33. Qf7#
{[%clk 0:00:16.2]} 1-0

[Event "*** Titled Tuesday Blitz"]
[Site "Chess.com"]
[Date "2021.02.09"]
[Round "9"]
[White "olksuna"]
[Black "ega2006"]
[Result "1-0"]
[WhiteElo "2672"]
[BlackElo "2407"]
[TimeControl "180+1"]
[EndTime "11:44:38 PST"]
[Termination "olksuna won by resignation"]

1. e4 {[%clk 0:03:00.9]} 1... c5 {[%clk 0:02:59.8]} 2. Nf3 {[%clk 0:03:00.9]}
2... Nc6 {[%clk 0:03:00.3]} 3. d4 {[%clk 0:03:00.8]} 3... cxd4 {[%clk
0:03:01.2]} 4. Nxd4 {[%clk 0:03:01.7]} 4... g6 {[%clk 0:03:01.9]} 5. c4 {[%clk
0:02:59.2]} 5... Bg7 {[%clk 0:03:02.1]} 6. Be3 {[%clk 0:02:59.8]} 6... Nf6
{[%clk 0:03:02.7]} 7. Nc3 {[%clk 0:03:00.3]} 7... O-O {[%clk 0:03:03.3]} 8. Be2
{[%clk 0:02:58.6]} 8... d6 {[%clk 0:03:03.8]} 9. O-O {[%clk 0:02:58.8]} 9... Bd7
{[%clk 0:03:04.4]} 10. h3 {[%clk 0:02:59.2]} 10... a6 {[%clk 0:03:04]} 11. Nf3
{[%clk 0:02:52.4]} 11... Rc8 {[%clk 0:02:54.9]} 12. a3 {[%clk 0:02:44.3]} 12...
Ne5 {[%clk 0:02:43]} 13. Nxe5 {[%clk 0:02:42.2]} 13... dxe5 {[%clk 0:02:43.9]}
14. b4 {[%clk 0:02:41.1]} 14... b5 {[%clk 0:02:33.8]} 15. c5 {[%clk 0:02:36.1]}
15... Bc6 {[%clk 0:02:33.9]} 16. Qc2 {[%clk 0:02:35.7]} 16... Qc7 {[%clk
0:02:26.8]} 17. Rfd1 {[%clk 0:02:34.2]} 17... Qb7 {[%clk 0:02:26.7]} 18. Bf3
{[%clk 0:02:29]} 18... Rfd8 {[%clk 0:02:26]} 19. g3 {[%clk 0:02:19.2]} 19... h5
{[%clk 0:02:25.6]} 20. h4 {[%clk 0:02:19.5]} 20... Kh7 {[%clk 0:02:26.2]} 21.
Kg2 {[%clk 0:02:19.4]} 21... Bh6 {[%clk 0:02:26.7]} 22. Bxh6 {[%clk 0:02:11.8]}
22... Kxh6 {[%clk 0:02:26.9]} 23. Qc1+ {[%clk 0:02:12.7]} 23... Kg7 {[%clk
0:02:27.2]} 24. Qg5 {[%clk 0:02:13.6]} 24... Qc7 {[%clk 0:02:21.8]} 25. Nd5
{[%clk 0:02:05.9]} 25... Qb7 {[%clk 0:01:35.9]} 26. Qxe5 {[%clk 0:02:03.3]}
26... Re8 {[%clk 0:01:04]} 27. Rd2 {[%clk 0:01:54.1]} 27... Qb8 {[%clk
0:00:59.3]} 28. Qc3 {[%clk 0:01:44.7]} 28... e5 {[%clk 0:00:46.1]} 29. Nxf6
{[%clk 0:01:30.3]} 29... Kxf6 {[%clk 0:00:47]} 30. Rd6+ {[%clk 0:01:30.5]} 30...
Kg7 {[%clk 0:00:45.6]} 31. Rad1 {[%clk 0:01:30.3]} 31... f6 {[%clk 0:00:41.9]}
32. Qe3 {[%clk 0:01:23.8]} 32... Red8 {[%clk 0:00:37.5]} 33. Qd2 {[%clk
0:01:13.6]} 33... Rxd6 {[%clk 0:00:34.5]} 34. Qxd6 {[%clk 0:01:11.9]} 34... Qxd6
{[%clk 0:00:20.1]} 35. Rxd6 {[%clk 0:01:02.6]} 35... Kf7 {[%clk 0:00:20.4]} 36.
Kf1 {[%clk 0:00:56.6]} 36... f5 {[%clk 0:00:20.1]} 37. Ke2 {[%clk 0:00:46.5]}
37... fxe4 {[%clk 0:00:20]} 38. Bg2 {[%clk 0:00:46.1]} 38... Ke7 {[%clk
0:00:15.8]} 39. Ke3 {[%clk 0:00:46]} 39... a5 {[%clk 0:00:03.8]} 40. Bxe4 {[%clk
0:00:42.1]} 40... Bxe4 {[%clk 0:00:02.2]} 41. Kxe4 {[%clk 0:00:43]} 41... axb4
{[%clk 0:00:03.1]} 42. axb4 {[%clk 0:00:43.9]} 42... Ra8 {[%clk 0:00:02.4]} 1-0

[Event "*** Titled Tuesday Blitz"]
[Site "Chess.com"]
[Date "2021.02.09"]
[Round "9"]
[White "DrVelja"]
[Black "Alexchess1984"]
[Result "1-0"]
[WhiteElo "2834"]
[BlackElo "2719"]
[TimeControl "180+1"]
[EndTime "11:44:39 PST"]
[Termination "DrVelja won by resignation"]

1. e4 {[%clk 0:03:00.9]} 1... c5 {[%clk 0:02:59.2]} 2. Nc3 {[%clk 0:02:59]} 2...
Nc6 {[%clk 0:02:59.5]} 3. Bb5 {[%clk 0:02:58.6]} 3... Nf6 {[%clk 0:02:58.7]} 4.
Bxc6 {[%clk 0:02:54.3]} 4... bxc6 {[%clk 0:02:56.8]} 5. d3 {[%clk 0:02:50.7]}
5... d5 {[%clk 0:02:49.1]} 6. Qe2 {[%clk 0:02:45.2]} 6... d4 {[%clk 0:02:44]} 7.
Nb1 {[%clk 0:02:41.9]} 7... a5 {[%clk 0:02:37.7]} 8. a4 {[%clk 0:02:40.4]} 8...
Nd7 {[%clk 0:02:31.3]} 9. Nf3 {[%clk 0:02:38.8]} 9... e5 {[%clk 0:02:31.3]} 10.
Na3 {[%clk 0:02:37.5]} 10... Bd6 {[%clk 0:02:28.8]} 11. Nc4 {[%clk 0:02:31.3]}
11... Bc7 {[%clk 0:02:29]} 12. b3 {[%clk 0:02:22.9]} 12... Qe7 {[%clk 0:02:18]}
13. O-O {[%clk 0:02:05.6]} 13... Nb6 {[%clk 0:02:16.9]} 14. Nfxe5 {[%clk
0:01:53]} 14... Nxc4 {[%clk 0:02:11.1]} 15. Nxc4 {[%clk 0:01:53.9]} 15... O-O
{[%clk 0:02:07.2]} 16. f4 {[%clk 0:01:49.6]} 16... f5 {[%clk 0:02:06.1]} 17. Bd2
{[%clk 0:01:41.5]} 17... Be6 {[%clk 0:02:05.5]} 18. exf5 {[%clk 0:01:39]} 18...
Rxf5 {[%clk 0:02:05.1]} 19. Rae1 {[%clk 0:01:39.2]} 19... Re8 {[%clk 0:02:03.2]}
20. Nxa5 {[%clk 0:01:30.1]} 20... Bxa5 {[%clk 0:02:01.4]} 21. Bxa5 {[%clk
0:01:31]} 21... Qd7 {[%clk 0:01:59.7]} 22. Bd2 {[%clk 0:01:29.6]} 22... Bf7
{[%clk 0:01:56.7]} 23. Qf2 {[%clk 0:01:27.7]} 23... Rf8 {[%clk 0:01:52]} 24. Re5
{[%clk 0:01:14.5]} 24... Rf6 {[%clk 0:01:50.8]} 25. f5 {[%clk 0:00:57.3]} 25...
Bd5 {[%clk 0:01:50.5]} 26. Bg5 {[%clk 0:00:53.7]} 26... R6f7 {[%clk 0:01:40.6]}
27. g4 {[%clk 0:00:40.8]} 27... g6 {[%clk 0:01:26.4]} 28. Qg3 {[%clk 0:00:39.5]}
28... gxf5 {[%clk 0:01:22.1]} 29. Rfxf5 {[%clk 0:00:37.6]} 29... Rxf5 {[%clk
0:01:20.7]} 30. gxf5 {[%clk 0:00:38.5]} 30... Kh8 {[%clk 0:01:05.2]} 31. Qf4
{[%clk 0:00:15.1]} 31... Qf7 {[%clk 0:00:50.4]} 32. h4 {[%clk 0:00:09.4]} 32...
Qh5 {[%clk 0:00:49.8]} 33. Kh2 {[%clk 0:00:04.2]} 33... Qd1 {[%clk 0:00:46.9]}
34. Bf6+ {[%clk 0:00:02.7]} 34... Rxf6 {[%clk 0:00:44.3]} 35. Re8+ {[%clk
0:00:03.1]} 35... Bg8 {[%clk 0:00:31.4]} 36. Qg3 {[%clk 0:00:03.4]} 36... Qe2+
{[%clk 0:00:25.3]} 37. Rxe2 {[%clk 0:00:02.7]} 1-0

[Event "*** Titled Tuesday Blitz"]
[Site "Chess.com"]
[Date "2021.02.09"]
[Round "9"]
[White "FMJoseHerrera"]
[Black "ketster"]
[Result "1-0"]
[WhiteElo "2593"]
[BlackElo "2456"]
[TimeControl "180+1"]
[EndTime "11:44:39 PST"]
[Termination "FMJoseHerrera won on time"]

1. Nf3 {[%clk 0:03:00.9]} 1... Nf6 {[%clk 0:02:58.2]} 2. g3 {[%clk 0:03:00.4]}
2... d5 {[%clk 0:02:57.1]} 3. Bg2 {[%clk 0:02:58.4]} 3... e6 {[%clk 0:02:55]} 4.
O-O {[%clk 0:02:57.1]} 4... c5 {[%clk 0:02:54.9]} 5. c4 {[%clk 0:02:54.7]} 5...
d4 {[%clk 0:02:54.6]} 6. b4 {[%clk 0:02:52.8]} 6... cxb4 {[%clk 0:02:53.8]} 7.
a3 {[%clk 0:02:52.4]} 7... a5 {[%clk 0:02:52.5]} 8. d3 {[%clk 0:02:51.3]} 8...
Nc6 {[%clk 0:02:52.4]} 9. Nbd2 {[%clk 0:02:48.6]} 9... Ra6 {[%clk 0:02:49.8]}
10. Bb2 {[%clk 0:02:29.7]} 10... Be7 {[%clk 0:02:43.2]} 11. axb4 {[%clk
0:02:27]} 11... axb4 {[%clk 0:02:42.8]} 12. Nb3 {[%clk 0:02:23.8]} 12... e5
{[%clk 0:02:34.6]} 13. e3 {[%clk 0:02:14.2]} 13... dxe3 {[%clk 0:02:22.4]} 14.
fxe3 {[%clk 0:02:15.1]} 14... e4 {[%clk 0:02:18.7]} 15. Rxa6 {[%clk 0:02:02]}
15... bxa6 {[%clk 0:02:15.1]} 16. Ng5 {[%clk 0:01:57.3]} 16... Bg4 {[%clk
0:02:03.1]} 17. Qc2 {[%clk 0:01:36.1]} 17... Na5 {[%clk 0:01:03.7]} 18. Nxe4
{[%clk 0:01:31.3]} 18... Nxe4 {[%clk 0:00:58.6]} 19. Bxe4 {[%clk 0:01:32.2]}
19... Nxb3 {[%clk 0:00:58.5]} 20. Qxb3 {[%clk 0:01:29.1]} 20... O-O {[%clk
0:00:56.3]} 21. Bd4 {[%clk 0:01:16.3]} 21... h5 {[%clk 0:00:50]} 22. Qb2 {[%clk
0:01:14.6]} 22... f6 {[%clk 0:00:35.1]} 23. Bd5+ {[%clk 0:01:13.1]} 23... Kh8
{[%clk 0:00:34.3]} 24. Ra1 {[%clk 0:01:07.1]} 24... Qd6 {[%clk 0:00:31.1]} 25.
Qa2 {[%clk 0:01:02.7]} 25... h4 {[%clk 0:00:25.9]} 26. Qxa6 {[%clk 0:01:00.7]}
26... hxg3 {[%clk 0:00:23.8]} 27. Qxd6 {[%clk 0:01:00.1]} 27... Bxd6 {[%clk
0:00:23]} 28. hxg3 {[%clk 0:01:00.3]} 28... g5 {[%clk 0:00:17.5]} 29. Kg2 {[%clk
0:00:59.6]} 29... Kg7 {[%clk 0:00:17.1]} 30. Ra7+ {[%clk 0:00:58.2]} 30... Kg6
{[%clk 0:00:13.6]} 31. c5 {[%clk 0:00:58.4]} 31... Bb8 {[%clk 0:00:12]} 32. Rb7
{[%clk 0:00:58]} 32... Rd8 {[%clk 0:00:12.1]} 33. Be4+ {[%clk 0:00:56.8]} 33...
f5 {[%clk 0:00:12.5]} 34. Bf3 {[%clk 0:00:55.9]} 34... Bxf3+ {[%clk 0:00:08.2]}
35. Kxf3 {[%clk 0:00:56.8]} 35... f4 {[%clk 0:00:07.7]} 36. gxf4 {[%clk
0:00:53.8]} 36... gxf4 {[%clk 0:00:07.9]} 37. Rxb4 {[%clk 0:00:52.7]} 37... fxe3
{[%clk 0:00:08.3]} 38. Kxe3 {[%clk 0:00:53.6]} 38... Kf5 {[%clk 0:00:08.2]} 39.
c6 {[%clk 0:00:50.3]} 39... Bf4+ {[%clk 0:00:07.8]} 40. Kf3 {[%clk 0:00:50.5]}
40... Bd6 {[%clk 0:00:07.2]} 41. Rc4 {[%clk 0:00:50.4]} 41... Rc8 {[%clk
0:00:07.2]} 42. Be3 {[%clk 0:00:49.9]} 42... Ke6 {[%clk 0:00:07.2]} 43. Ke4
{[%clk 0:00:49.9]} 43... Rh8 {[%clk 0:00:04.4]} 44. d4 {[%clk 0:00:49]} 44...
Rh4+ {[%clk 0:00:04.1]} 45. Kd3 {[%clk 0:00:49.5]} 45... Kd5 {[%clk 0:00:03.7]}
46. c7 {[%clk 0:00:49]} 46... Rh8 {[%clk 0:00:03.6]} 47. c8=Q {[%clk 0:00:49.1]}
1-0

[Event "*** Titled Tuesday Blitz"]
[Site "Chess.com"]
[Date "2021.02.09"]
[Round "9"]
[White "IngOscarArdila"]
[Black "Ladislav1969"]
[Result "0-1"]
[WhiteElo "2160"]
[BlackElo "2304"]
[TimeControl "180+1"]
[EndTime "11:44:40 PST"]
[Termination "Ladislav1969 won by resignation"]

1. d4 {[%clk 0:03:00.9]} 1... Nf6 {[%clk 0:02:59.6]} 2. c4 {[%clk 0:02:59]} 2...
g6 {[%clk 0:02:59.7]} 3. Nc3 {[%clk 0:02:57.9]} 3... d5 {[%clk 0:02:59.9]} 4.
cxd5 {[%clk 0:02:57.1]} 4... Nxd5 {[%clk 0:03:00.8]} 5. e4 {[%clk 0:02:57.7]}
5... Nxc3 {[%clk 0:03:01.1]} 6. bxc3 {[%clk 0:02:58.6]} 6... c5 {[%clk
0:03:01.6]} 7. Bc4 {[%clk 0:02:58.1]} 7... Bg7 {[%clk 0:03:01.6]} 8. Ne2 {[%clk
0:02:58.5]} 8... Nc6 {[%clk 0:03:01.7]} 9. Be3 {[%clk 0:02:58.4]} 9... O-O
{[%clk 0:03:00.5]} 10. O-O {[%clk 0:02:58]} 10... Bd7 {[%clk 0:02:59.4]} 11. Rc1
{[%clk 0:02:56.2]} 11... Rc8 {[%clk 0:02:53.2]} 12. Qd2 {[%clk 0:02:55.1]} 12...
Qa5 {[%clk 0:02:40.2]} 13. d5 {[%clk 0:02:02.1]} 13... Ne5 {[%clk 0:02:35.2]}
14. Bb3 {[%clk 0:02:02.3]} 14... c4 {[%clk 0:02:03.4]} 15. Bc2 {[%clk
0:02:01.2]} 15... Ba4 {[%clk 0:02:03.3]} 16. Bd4 {[%clk 0:01:53]} 16... Bxc2
{[%clk 0:02:01]} 17. Rxc2 {[%clk 0:01:53]} 17... Nd3 {[%clk 0:01:54.3]} 18. Bxg7
{[%clk 0:01:52.4]} 18... Kxg7 {[%clk 0:01:54.4]} 19. Nf4 {[%clk 0:01:49.8]}
19... Qa6 {[%clk 0:01:32.3]} 20. Rd1 {[%clk 0:01:33.7]} 20... Ne5 {[%clk
0:01:26.3]} 21. Qd4 {[%clk 0:01:32.8]} 21... Qf6 {[%clk 0:01:23]} 22. Qe3 {[%clk
0:01:15.2]} 22... b6 {[%clk 0:01:12.4]} 23. Rd4 {[%clk 0:01:06.8]} 23... Rc5
{[%clk 0:01:11.7]} 24. Rcd2 {[%clk 0:01:05]} 24... Rd8 {[%clk 0:01:09.3]} 25. h3
{[%clk 0:01:03.6]} 25... Rb5 {[%clk 0:00:56.9]} 26. Qg3 {[%clk 0:01:02.2]} 26...
Kf8 {[%clk 0:00:50.1]} 27. Kh2 {[%clk 0:01:00.4]} 27... Rb1 {[%clk 0:00:48.5]}
28. d6 {[%clk 0:00:53.6]} 28... exd6 {[%clk 0:00:41.4]} 29. Nd5 {[%clk 0:00:53]}
29... Qe6 {[%clk 0:00:32.8]} 30. f4 {[%clk 0:00:53.1]} 30... Nd3 {[%clk
0:00:30.8]} 31. Qg5 {[%clk 0:00:51.1]} 31... Rd7 {[%clk 0:00:20.1]} 32. Nf6
{[%clk 0:00:47.9]} 32... Kg7 {[%clk 0:00:18]} 33. Nxd7 {[%clk 0:00:45.9]} 33...
Qxd7 {[%clk 0:00:18.6]} 34. Rxd6 {[%clk 0:00:46]} 34... Qxd6 {[%clk 0:00:17.9]}
35. e5 {[%clk 0:00:40.3]} 35... Qd5 {[%clk 0:00:17.3]} 36. Qf6+ {[%clk
0:00:39.9]} 36... Kg8 {[%clk 0:00:16.6]} 37. Re2 {[%clk 0:00:34.8]} 37... Rb2
{[%clk 0:00:16.3]} 38. Re4 {[%clk 0:00:27]} 38... Rxg2+ {[%clk 0:00:12.4]} 39.
Kh1 {[%clk 0:00:21.5]} 39... Re2 {[%clk 0:00:10.9]} 0-1